{"text_format":"1","workbook":"xlsx","n_sheets":11,"sheets":["Turnier","Klassenverantwortliche","Teilnehmer","Runde 1","Runde 2","Runde 3","Ranglisten","Hilfe","Assistance","Aiuto","Codes"],"not_rendered":{"charts":0,"images":3,"macros":1,"external_links":0,"defined_names":2,"comments":0,"pivot_tables":0},"unopened":[],"bounds":{"document_bytes":16777216,"sheet_cells":100000,"rows_first":2000,"rows_last":500,"rows_between":2000,"halvings":0,"cell_chars":16384,"cell_head_chars":4096},"cells_cut":0,"cells_raw":0,"read":"whole","date_system":"1900"}

{"sheet":"Turnier","index":0,"n_rows":23,"n_cols":4,"rows_kept":23,"cut":false,"hidden":false,"merged":[[11,2,11,3],[4,2,4,3],[5,2,5,3],[6,2,6,3],[7,2,7,3],[8,2,8,3]]}
[]
[]
[]
[null,"Turnierdaten","ACHTUNG: Das Tool läuft nur in Excel 2007, 2010, 2013 und 2016 unter Windows sowie Excel 2011 und 2016 unter Mac OS"]
[null,"Name"]
[null,"Datum","2017-01-01"]
[null,"Ort"]
[null,"Organisator"]
[null,"Organisator Mail"]
[]
[null,"Kategorie"]
[null,"Name"]
[]
[null,"Zeitplanung (nach Erfassung der Teilnehmer)"]
[null,"Anzahl Runden",3]
[null,"Spielzeit",5,"min (je für Einzel, Posten und Zählen)"]
[null,"Zeit Aufgabenwechsel",4,"min"]
[null,"Zeit Rundenwechsel",8,"min"]
[null,"Total",{"$f":"IF(IsShuttleTimeModeLight() = TRUE,C15*((C16*2+C17+C18)),IF(IsShuttleTimeMode() = TRUE,C15*(C16*3+C17*2+C18),C15*(C16 + C18)))","v":66},"min"]
[]
[]
[]
[null,"Partner:"]

{"sheet":"Klassenverantwortliche","index":1,"n_rows":28,"n_cols":10,"rows_kept":28,"cut":false,"hidden":false,"merged":[]}
[]
[null,"Klassenverantwortliche"]
[]
[null,"Klasse","Vorname","Name","Email","Schule","Strasse","HausNr","PLZ","Ort"]
[]
[]
[]
[]
[]
[]
[]
[]
[]
[]
[]
[]
[]
[]
[]
[]
[]
[]
[]
[]
[]
[]
[]
[null,"Partner:"]

{"sheet":"Teilnehmer","index":2,"n_rows":107,"n_cols":14,"rows_kept":107,"cut":false,"hidden":false,"merged":[]}
[]
[null,"Teilnehmer",null,null,"Es werden nur Teilnehmer ausgelost, welche in der Kolonne Status ein Ok haben",null,null,null,null,"Gestrichen wird ein Teilnehmer in der Kolonne Out mit x"]
[]
[null,"Id","Schule*","Klasse*","Vorname*","Name*","Geschl.*","Geb.-datum*","Strasse","HausNr","PLZ","Wohnort","Status","Out"]
[null,1,"Beispielschule","1A","Angriffs","Clear","F","2000-05-15",null,null,null,null,{"$f":"IF(OR(LEN(TRIM(C5))<=0,LEN(TRIM(D5))<=0,LEN(TRIM(E5))<=0,LEN(TRIM(F5))<=0,LEN(TRIM(G5))<=0,LEN(TRIM(H5))<=0),Utilities.GetStatusMissingLabel(),IF(TRIM(N5) = \"x\", Utilities.GetStatusOutLabel(),Utilities.GetStatusOkLabel()))","v":"Ok"}]
[null,{"$f":" B5 +1","v":2},"Beispielschule","1A","Vorhand","Drive","F","2000-01-19",null,null,null,null,{"$f":"IF(OR(LEN(TRIM(C6))<=0,LEN(TRIM(D6))<=0,LEN(TRIM(E6))<=0,LEN(TRIM(F6))<=0,LEN(TRIM(G6))<=0,LEN(TRIM(H6))<=0),Utilities.GetStatusMissingLabel(),IF(TRIM(N6) = \"x\", Utilities.GetStatusOutLabel(),Utilities.GetStatusOkLabel()))","v":"Ok"}]
[null,{"$f":" B6 +1","v":3},"Beispielschule","1B","Stop","Drop","M","2000-07-28",null,null,null,null,{"$f":"IF(OR(LEN(TRIM(C7))<=0,LEN(TRIM(D7))<=0,LEN(TRIM(E7))<=0,LEN(TRIM(F7))<=0,LEN(TRIM(G7))<=0,LEN(TRIM(H7))<=0),Utilities.GetStatusMissingLabel(),IF(TRIM(N7) = \"x\", Utilities.GetStatusOutLabel(),Utilities.GetStatusOkLabel()))","v":"Ok"}]
[null,4,"Beispielschule","1B","Sprung","Smash","M","2000-02-15",null,null,null,null,{"$f":"IF(OR(LEN(TRIM(C8))<=0,LEN(TRIM(D8))<=0,LEN(TRIM(E8))<=0,LEN(TRIM(F8))<=0,LEN(TRIM(G8))<=0,LEN(TRIM(H8))<=0),Utilities.GetStatusMissingLabel(),IF(TRIM(N8) = \"x\", Utilities.GetStatusOutLabel(),Utilities.GetStatusOkLabel()))","v":"Ok"}]
[null,5,"Beispielschule","1C","Cross","Lob","M","2000-11-11",null,null,null,null,{"$f":"IF(OR(LEN(TRIM(C9))<=0,LEN(TRIM(D9))<=0,LEN(TRIM(E9))<=0,LEN(TRIM(F9))<=0,LEN(TRIM(G9))<=0,LEN(TRIM(H9))<=0),Utilities.GetStatusMissingLabel(),IF(TRIM(N9) = \"x\", Utilities.GetStatusOutLabel(),Utilities.GetStatusOkLabel()))","v":"Ok"}]
[null,6,"Beispielschule","1C","Cross","Lob","M","2000-11-11",null,null,null,null,{"$f":"IF(OR(LEN(TRIM(C10))<=0,LEN(TRIM(D10))<=0,LEN(TRIM(E10))<=0,LEN(TRIM(F10))<=0,LEN(TRIM(G10))<=0,LEN(TRIM(H10))<=0),Utilities.GetStatusMissingLabel(),IF(TRIM(N10) = \"x\", Utilities.GetStatusOutLabel(),Utilities.GetStatusOkLabel()))","v":"Ok"}]
[null,7,null,null,null,null,null,null,null,null,null,null,{"$f":"IF(OR(LEN(TRIM(C11))<=0,LEN(TRIM(D11))<=0,LEN(TRIM(E11))<=0,LEN(TRIM(F11))<=0,LEN(TRIM(G11))<=0,LEN(TRIM(H11))<=0),Utilities.GetStatusMissingLabel(),IF(TRIM(N11) = \"x\", Utilities.GetStatusOutLabel(),Utilities.GetStatusOkLabel()))","v":"Fehlt"}]
[null,8,null,null,null,null,null,null,null,null,null,null,{"$f":"IF(OR(LEN(TRIM(C12))<=0,LEN(TRIM(D12))<=0,LEN(TRIM(E12))<=0,LEN(TRIM(F12))<=0,LEN(TRIM(G12))<=0,LEN(TRIM(H12))<=0),Utilities.GetStatusMissingLabel(),IF(TRIM(N12) = \"x\", Utilities.GetStatusOutLabel(),Utilities.GetStatusOkLabel()))","v":"Fehlt"}]
[null,9,null,null,null,null,null,null,null,null,null,null,{"$f":"IF(OR(LEN(TRIM(C13))<=0,LEN(TRIM(D13))<=0,LEN(TRIM(E13))<=0,LEN(TRIM(F13))<=0,LEN(TRIM(G13))<=0,LEN(TRIM(H13))<=0),Utilities.GetStatusMissingLabel(),IF(TRIM(N13) = \"x\", Utilities.GetStatusOutLabel(),Utilities.GetStatusOkLabel()))","v":"Fehlt"}]
[null,10,null,null,null,null,null,null,null,null,null,null,{"$f":"IF(OR(LEN(TRIM(C14))<=0,LEN(TRIM(D14))<=0,LEN(TRIM(E14))<=0,LEN(TRIM(F14))<=0,LEN(TRIM(G14))<=0,LEN(TRIM(H14))<=0),Utilities.GetStatusMissingLabel(),IF(TRIM(N14) = \"x\", Utilities.GetStatusOutLabel(),Utilities.GetStatusOkLabel()))","v":"Fehlt"}]
[null,11,null,null,null,null,null,null,null,null,null,null,{"$f":"IF(OR(LEN(TRIM(C15))<=0,LEN(TRIM(D15))<=0,LEN(TRIM(E15))<=0,LEN(TRIM(F15))<=0,LEN(TRIM(G15))<=0,LEN(TRIM(H15))<=0),Utilities.GetStatusMissingLabel(),IF(TRIM(N15) = \"x\", Utilities.GetStatusOutLabel(),Utilities.GetStatusOkLabel()))","v":"Fehlt"}]
[null,12,null,null,null,null,null,null,null,null,null,null,{"$f":"IF(OR(LEN(TRIM(C16))<=0,LEN(TRIM(D16))<=0,LEN(TRIM(E16))<=0,LEN(TRIM(F16))<=0,LEN(TRIM(G16))<=0,LEN(TRIM(H16))<=0),Utilities.GetStatusMissingLabel(),IF(TRIM(N16) = \"x\", Utilities.GetStatusOutLabel(),Utilities.GetStatusOkLabel()))","v":"Fehlt"}]
[null,13,null,null,null,null,null,null,null,null,null,null,{"$f":"IF(OR(LEN(TRIM(C17))<=0,LEN(TRIM(D17))<=0,LEN(TRIM(E17))<=0,LEN(TRIM(F17))<=0,LEN(TRIM(G17))<=0,LEN(TRIM(H17))<=0),Utilities.GetStatusMissingLabel(),IF(TRIM(N17) = \"x\", Utilities.GetStatusOutLabel(),Utilities.GetStatusOkLabel()))","v":"Fehlt"}]
[null,14,null,null,null,null,null,null,null,null,null,null,{"$f":"IF(OR(LEN(TRIM(C18))<=0,LEN(TRIM(D18))<=0,LEN(TRIM(E18))<=0,LEN(TRIM(F18))<=0,LEN(TRIM(G18))<=0,LEN(TRIM(H18))<=0),Utilities.GetStatusMissingLabel(),IF(TRIM(N18) = \"x\", Utilities.GetStatusOutLabel(),Utilities.GetStatusOkLabel()))","v":"Fehlt"}]
[null,15,null,null,null,null,null,null,null,null,null,null,{"$f":"IF(OR(LEN(TRIM(C19))<=0,LEN(TRIM(D19))<=0,LEN(TRIM(E19))<=0,LEN(TRIM(F19))<=0,LEN(TRIM(G19))<=0,LEN(TRIM(H19))<=0),Utilities.GetStatusMissingLabel(),IF(TRIM(N19) = \"x\", Utilities.GetStatusOutLabel(),Utilities.GetStatusOkLabel()))","v":"Fehlt"}]
[null,16,null,null,null,null,null,null,null,null,null,null,{"$f":"IF(OR(LEN(TRIM(C20))<=0,LEN(TRIM(D20))<=0,LEN(TRIM(E20))<=0,LEN(TRIM(F20))<=0,LEN(TRIM(G20))<=0,LEN(TRIM(H20))<=0),Utilities.GetStatusMissingLabel(),IF(TRIM(N20) = \"x\", Utilities.GetStatusOutLabel(),Utilities.GetStatusOkLabel()))","v":"Fehlt"}]
[null,17,null,null,null,null,null,null,null,null,null,null,{"$f":"IF(OR(LEN(TRIM(C21))<=0,LEN(TRIM(D21))<=0,LEN(TRIM(E21))<=0,LEN(TRIM(F21))<=0,LEN(TRIM(G21))<=0,LEN(TRIM(H21))<=0),Utilities.GetStatusMissingLabel(),IF(TRIM(N21) = \"x\", Utilities.GetStatusOutLabel(),Utilities.GetStatusOkLabel()))","v":"Fehlt"}]
[null,18,null,null,null,null,null,null,null,null,null,null,{"$f":"IF(OR(LEN(TRIM(C22))<=0,LEN(TRIM(D22))<=0,LEN(TRIM(E22))<=0,LEN(TRIM(F22))<=0,LEN(TRIM(G22))<=0,LEN(TRIM(H22))<=0),Utilities.GetStatusMissingLabel(),IF(TRIM(N22) = \"x\", Utilities.GetStatusOutLabel(),Utilities.GetStatusOkLabel()))","v":"Fehlt"}]
[null,19,null,null,null,null,null,null,null,null,null,null,{"$f":"IF(OR(LEN(TRIM(C23))<=0,LEN(TRIM(D23))<=0,LEN(TRIM(E23))<=0,LEN(TRIM(F23))<=0,LEN(TRIM(G23))<=0,LEN(TRIM(H23))<=0),Utilities.GetStatusMissingLabel(),IF(TRIM(N23) = \"x\", Utilities.GetStatusOutLabel(),Utilities.GetStatusOkLabel()))","v":"Fehlt"}]
[null,20,null,null,null,null,null,null,null,null,null,null,{"$f":"IF(OR(LEN(TRIM(C24))<=0,LEN(TRIM(D24))<=0,LEN(TRIM(E24))<=0,LEN(TRIM(F24))<=0,LEN(TRIM(G24))<=0,LEN(TRIM(H24))<=0),Utilities.GetStatusMissingLabel(),IF(TRIM(N24) = \"x\", Utilities.GetStatusOutLabel(),Utilities.GetStatusOkLabel()))","v":"Fehlt"}]
[null,21,null,null,null,null,null,null,null,null,null,null,{"$f":"IF(OR(LEN(TRIM(C25))<=0,LEN(TRIM(D25))<=0,LEN(TRIM(E25))<=0,LEN(TRIM(F25))<=0,LEN(TRIM(G25))<=0,LEN(TRIM(H25))<=0),Utilities.GetStatusMissingLabel(),IF(TRIM(N25) = \"x\", Utilities.GetStatusOutLabel(),Utilities.GetStatusOkLabel()))","v":"Fehlt"}]
[null,22,null,null,null,null,null,null,null,null,null,null,{"$f":"IF(OR(LEN(TRIM(C26))<=0,LEN(TRIM(D26))<=0,LEN(TRIM(E26))<=0,LEN(TRIM(F26))<=0,LEN(TRIM(G26))<=0,LEN(TRIM(H26))<=0),Utilities.GetStatusMissingLabel(),IF(TRIM(N26) = \"x\", Utilities.GetStatusOutLabel(),Utilities.GetStatusOkLabel()))","v":"Fehlt"}]
[null,23,null,null,null,null,null,null,null,null,null,null,{"$f":"IF(OR(LEN(TRIM(C27))<=0,LEN(TRIM(D27))<=0,LEN(TRIM(E27))<=0,LEN(TRIM(F27))<=0,LEN(TRIM(G27))<=0,LEN(TRIM(H27))<=0),Utilities.GetStatusMissingLabel(),IF(TRIM(N27) = \"x\", Utilities.GetStatusOutLabel(),Utilities.GetStatusOkLabel()))","v":"Fehlt"}]
[null,24,null,null,null,null,null,null,null,null,null,null,{"$f":"IF(OR(LEN(TRIM(C28))<=0,LEN(TRIM(D28))<=0,LEN(TRIM(E28))<=0,LEN(TRIM(F28))<=0,LEN(TRIM(G28))<=0,LEN(TRIM(H28))<=0),Utilities.GetStatusMissingLabel(),IF(TRIM(N28) = \"x\", Utilities.GetStatusOutLabel(),Utilities.GetStatusOkLabel()))","v":"Fehlt"}]
[null,25,null,null,null,null,null,null,null,null,null,null,{"$f":"IF(OR(LEN(TRIM(C29))<=0,LEN(TRIM(D29))<=0,LEN(TRIM(E29))<=0,LEN(TRIM(F29))<=0,LEN(TRIM(G29))<=0,LEN(TRIM(H29))<=0),Utilities.GetStatusMissingLabel(),IF(TRIM(N29) = \"x\", Utilities.GetStatusOutLabel(),Utilities.GetStatusOkLabel()))","v":"Fehlt"}]
[null,26,null,null,null,null,null,null,null,null,null,null,{"$f":"IF(OR(LEN(TRIM(C30))<=0,LEN(TRIM(D30))<=0,LEN(TRIM(E30))<=0,LEN(TRIM(F30))<=0,LEN(TRIM(G30))<=0,LEN(TRIM(H30))<=0),Utilities.GetStatusMissingLabel(),IF(TRIM(N30) = \"x\", Utilities.GetStatusOutLabel(),Utilities.GetStatusOkLabel()))","v":"Fehlt"}]
[null,27,null,null,null,null,null,null,null,null,null,null,{"$f":"IF(OR(LEN(TRIM(C31))<=0,LEN(TRIM(D31))<=0,LEN(TRIM(E31))<=0,LEN(TRIM(F31))<=0,LEN(TRIM(G31))<=0,LEN(TRIM(H31))<=0),Utilities.GetStatusMissingLabel(),IF(TRIM(N31) = \"x\", Utilities.GetStatusOutLabel(),Utilities.GetStatusOkLabel()))","v":"Fehlt"}]
[null,28,null,null,null,null,null,null,null,null,null,null,{"$f":"IF(OR(LEN(TRIM(C32))<=0,LEN(TRIM(D32))<=0,LEN(TRIM(E32))<=0,LEN(TRIM(F32))<=0,LEN(TRIM(G32))<=0,LEN(TRIM(H32))<=0),Utilities.GetStatusMissingLabel(),IF(TRIM(N32) = \"x\", Utilities.GetStatusOutLabel(),Utilities.GetStatusOkLabel()))","v":"Fehlt"}]
[null,29,null,null,null,null,null,null,null,null,null,null,{"$f":"IF(OR(LEN(TRIM(C33))<=0,LEN(TRIM(D33))<=0,LEN(TRIM(E33))<=0,LEN(TRIM(F33))<=0,LEN(TRIM(G33))<=0,LEN(TRIM(H33))<=0),Utilities.GetStatusMissingLabel(),IF(TRIM(N33) = \"x\", Utilities.GetStatusOutLabel(),Utilities.GetStatusOkLabel()))","v":"Fehlt"}]
[null,30,null,null,null,null,null,null,null,null,null,null,{"$f":"IF(OR(LEN(TRIM(C34))<=0,LEN(TRIM(D34))<=0,LEN(TRIM(E34))<=0,LEN(TRIM(F34))<=0,LEN(TRIM(G34))<=0,LEN(TRIM(H34))<=0),Utilities.GetStatusMissingLabel(),IF(TRIM(N34) = \"x\", Utilities.GetStatusOutLabel(),Utilities.GetStatusOkLabel()))","v":"Fehlt"}]
[null,31,null,null,null,null,null,null,null,null,null,null,{"$f":"IF(OR(LEN(TRIM(C35))<=0,LEN(TRIM(D35))<=0,LEN(TRIM(E35))<=0,LEN(TRIM(F35))<=0,LEN(TRIM(G35))<=0,LEN(TRIM(H35))<=0),Utilities.GetStatusMissingLabel(),IF(TRIM(N35) = \"x\", Utilities.GetStatusOutLabel(),Utilities.GetStatusOkLabel()))","v":"Fehlt"}]
[null,32,null,null,null,null,null,null,null,null,null,null,{"$f":"IF(OR(LEN(TRIM(C36))<=0,LEN(TRIM(D36))<=0,LEN(TRIM(E36))<=0,LEN(TRIM(F36))<=0,LEN(TRIM(G36))<=0,LEN(TRIM(H36))<=0),Utilities.GetStatusMissingLabel(),IF(TRIM(N36) = \"x\", Utilities.GetStatusOutLabel(),Utilities.GetStatusOkLabel()))","v":"Fehlt"}]
[null,33,null,null,null,null,null,null,null,null,null,null,{"$f":"IF(OR(LEN(TRIM(C37))<=0,LEN(TRIM(D37))<=0,LEN(TRIM(E37))<=0,LEN(TRIM(F37))<=0,LEN(TRIM(G37))<=0,LEN(TRIM(H37))<=0),Utilities.GetStatusMissingLabel(),IF(TRIM(N37) = \"x\", Utilities.GetStatusOutLabel(),Utilities.GetStatusOkLabel()))","v":"Fehlt"}]
[null,34,null,null,null,null,null,null,null,null,null,null,{"$f":"IF(OR(LEN(TRIM(C38))<=0,LEN(TRIM(D38))<=0,LEN(TRIM(E38))<=0,LEN(TRIM(F38))<=0,LEN(TRIM(G38))<=0,LEN(TRIM(H38))<=0),Utilities.GetStatusMissingLabel(),IF(TRIM(N38) = \"x\", Utilities.GetStatusOutLabel(),Utilities.GetStatusOkLabel()))","v":"Fehlt"}]
[null,35,null,null,null,null,null,null,null,null,null,null,{"$f":"IF(OR(LEN(TRIM(C39))<=0,LEN(TRIM(D39))<=0,LEN(TRIM(E39))<=0,LEN(TRIM(F39))<=0,LEN(TRIM(G39))<=0,LEN(TRIM(H39))<=0),Utilities.GetStatusMissingLabel(),IF(TRIM(N39) = \"x\", Utilities.GetStatusOutLabel(),Utilities.GetStatusOkLabel()))","v":"Fehlt"}]
[null,36,null,null,null,null,null,null,null,null,null,null,{"$f":"IF(OR(LEN(TRIM(C40))<=0,LEN(TRIM(D40))<=0,LEN(TRIM(E40))<=0,LEN(TRIM(F40))<=0,LEN(TRIM(G40))<=0,LEN(TRIM(H40))<=0),Utilities.GetStatusMissingLabel(),IF(TRIM(N40) = \"x\", Utilities.GetStatusOutLabel(),Utilities.GetStatusOkLabel()))","v":"Fehlt"}]
[null,37,null,null,null,null,null,null,null,null,null,null,{"$f":"IF(OR(LEN(TRIM(C41))<=0,LEN(TRIM(D41))<=0,LEN(TRIM(E41))<=0,LEN(TRIM(F41))<=0,LEN(TRIM(G41))<=0,LEN(TRIM(H41))<=0),Utilities.GetStatusMissingLabel(),IF(TRIM(N41) = \"x\", Utilities.GetStatusOutLabel(),Utilities.GetStatusOkLabel()))","v":"Fehlt"}]
[null,38,null,null,null,null,null,null,null,null,null,null,{"$f":"IF(OR(LEN(TRIM(C42))<=0,LEN(TRIM(D42))<=0,LEN(TRIM(E42))<=0,LEN(TRIM(F42))<=0,LEN(TRIM(G42))<=0,LEN(TRIM(H42))<=0),Utilities.GetStatusMissingLabel(),IF(TRIM(N42) = \"x\", Utilities.GetStatusOutLabel(),Utilities.GetStatusOkLabel()))","v":"Fehlt"}]
[null,39,null,null,null,null,null,null,null,null,null,null,{"$f":"IF(OR(LEN(TRIM(C43))<=0,LEN(TRIM(D43))<=0,LEN(TRIM(E43))<=0,LEN(TRIM(F43))<=0,LEN(TRIM(G43))<=0,LEN(TRIM(H43))<=0),Utilities.GetStatusMissingLabel(),IF(TRIM(N43) = \"x\", Utilities.GetStatusOutLabel(),Utilities.GetStatusOkLabel()))","v":"Fehlt"}]
[null,40,null,null,null,null,null,null,null,null,null,null,{"$f":"IF(OR(LEN(TRIM(C44))<=0,LEN(TRIM(D44))<=0,LEN(TRIM(E44))<=0,LEN(TRIM(F44))<=0,LEN(TRIM(G44))<=0,LEN(TRIM(H44))<=0),Utilities.GetStatusMissingLabel(),IF(TRIM(N44) = \"x\", Utilities.GetStatusOutLabel(),Utilities.GetStatusOkLabel()))","v":"Fehlt"}]
[null,41,null,null,null,null,null,null,null,null,null,null,{"$f":"IF(OR(LEN(TRIM(C45))<=0,LEN(TRIM(D45))<=0,LEN(TRIM(E45))<=0,LEN(TRIM(F45))<=0,LEN(TRIM(G45))<=0,LEN(TRIM(H45))<=0),Utilities.GetStatusMissingLabel(),IF(TRIM(N45) = \"x\", Utilities.GetStatusOutLabel(),Utilities.GetStatusOkLabel()))","v":"Fehlt"}]
[null,42,null,null,null,null,null,null,null,null,null,null,{"$f":"IF(OR(LEN(TRIM(C46))<=0,LEN(TRIM(D46))<=0,LEN(TRIM(E46))<=0,LEN(TRIM(F46))<=0,LEN(TRIM(G46))<=0,LEN(TRIM(H46))<=0),Utilities.GetStatusMissingLabel(),IF(TRIM(N46) = \"x\", Utilities.GetStatusOutLabel(),Utilities.GetStatusOkLabel()))","v":"Fehlt"}]
[null,43,null,null,null,null,null,null,null,null,null,null,{"$f":"IF(OR(LEN(TRIM(C47))<=0,LEN(TRIM(D47))<=0,LEN(TRIM(E47))<=0,LEN(TRIM(F47))<=0,LEN(TRIM(G47))<=0,LEN(TRIM(H47))<=0),Utilities.GetStatusMissingLabel(),IF(TRIM(N47) = \"x\", Utilities.GetStatusOutLabel(),Utilities.GetStatusOkLabel()))","v":"Fehlt"}]
[null,44,null,null,null,null,null,null,null,null,null,null,{"$f":"IF(OR(LEN(TRIM(C48))<=0,LEN(TRIM(D48))<=0,LEN(TRIM(E48))<=0,LEN(TRIM(F48))<=0,LEN(TRIM(G48))<=0,LEN(TRIM(H48))<=0),Utilities.GetStatusMissingLabel(),IF(TRIM(N48) = \"x\", Utilities.GetStatusOutLabel(),Utilities.GetStatusOkLabel()))","v":"Fehlt"}]
[null,45,null,null,null,null,null,null,null,null,null,null,{"$f":"IF(OR(LEN(TRIM(C49))<=0,LEN(TRIM(D49))<=0,LEN(TRIM(E49))<=0,LEN(TRIM(F49))<=0,LEN(TRIM(G49))<=0,LEN(TRIM(H49))<=0),Utilities.GetStatusMissingLabel(),IF(TRIM(N49) = \"x\", Utilities.GetStatusOutLabel(),Utilities.GetStatusOkLabel()))","v":"Fehlt"}]
[null,46,null,null,null,null,null,null,null,null,null,null,{"$f":"IF(OR(LEN(TRIM(C50))<=0,LEN(TRIM(D50))<=0,LEN(TRIM(E50))<=0,LEN(TRIM(F50))<=0,LEN(TRIM(G50))<=0,LEN(TRIM(H50))<=0),Utilities.GetStatusMissingLabel(),IF(TRIM(N50) = \"x\", Utilities.GetStatusOutLabel(),Utilities.GetStatusOkLabel()))","v":"Fehlt"}]
[null,47,null,null,null,null,null,null,null,null,null,null,{"$f":"IF(OR(LEN(TRIM(C51))<=0,LEN(TRIM(D51))<=0,LEN(TRIM(E51))<=0,LEN(TRIM(F51))<=0,LEN(TRIM(G51))<=0,LEN(TRIM(H51))<=0),Utilities.GetStatusMissingLabel(),IF(TRIM(N51) = \"x\", Utilities.GetStatusOutLabel(),Utilities.GetStatusOkLabel()))","v":"Fehlt"}]
[null,48,null,null,null,null,null,null,null,null,null,null,{"$f":"IF(OR(LEN(TRIM(C52))<=0,LEN(TRIM(D52))<=0,LEN(TRIM(E52))<=0,LEN(TRIM(F52))<=0,LEN(TRIM(G52))<=0,LEN(TRIM(H52))<=0),Utilities.GetStatusMissingLabel(),IF(TRIM(N52) = \"x\", Utilities.GetStatusOutLabel(),Utilities.GetStatusOkLabel()))","v":"Fehlt"}]
[null,49,null,null,null,null,null,null,null,null,null,null,{"$f":"IF(OR(LEN(TRIM(C53))<=0,LEN(TRIM(D53))<=0,LEN(TRIM(E53))<=0,LEN(TRIM(F53))<=0,LEN(TRIM(G53))<=0,LEN(TRIM(H53))<=0),Utilities.GetStatusMissingLabel(),IF(TRIM(N53) = \"x\", Utilities.GetStatusOutLabel(),Utilities.GetStatusOkLabel()))","v":"Fehlt"}]
[null,50,null,null,null,null,null,null,null,null,null,null,{"$f":"IF(OR(LEN(TRIM(C54))<=0,LEN(TRIM(D54))<=0,LEN(TRIM(E54))<=0,LEN(TRIM(F54))<=0,LEN(TRIM(G54))<=0,LEN(TRIM(H54))<=0),Utilities.GetStatusMissingLabel(),IF(TRIM(N54) = \"x\", Utilities.GetStatusOutLabel(),Utilities.GetStatusOkLabel()))","v":"Fehlt"}]
[null,51,null,null,null,null,null,null,null,null,null,null,{"$f":"IF(OR(LEN(TRIM(C55))<=0,LEN(TRIM(D55))<=0,LEN(TRIM(E55))<=0,LEN(TRIM(F55))<=0,LEN(TRIM(G55))<=0,LEN(TRIM(H55))<=0),Utilities.GetStatusMissingLabel(),IF(TRIM(N55) = \"x\", Utilities.GetStatusOutLabel(),Utilities.GetStatusOkLabel()))","v":"Fehlt"}]
[null,52,null,null,null,null,null,null,null,null,null,null,{"$f":"IF(OR(LEN(TRIM(C56))<=0,LEN(TRIM(D56))<=0,LEN(TRIM(E56))<=0,LEN(TRIM(F56))<=0,LEN(TRIM(G56))<=0,LEN(TRIM(H56))<=0),Utilities.GetStatusMissingLabel(),IF(TRIM(N56) = \"x\", Utilities.GetStatusOutLabel(),Utilities.GetStatusOkLabel()))","v":"Fehlt"}]
[null,53,null,null,null,null,null,null,null,null,null,null,{"$f":"IF(OR(LEN(TRIM(C57))<=0,LEN(TRIM(D57))<=0,LEN(TRIM(E57))<=0,LEN(TRIM(F57))<=0,LEN(TRIM(G57))<=0,LEN(TRIM(H57))<=0),Utilities.GetStatusMissingLabel(),IF(TRIM(N57) = \"x\", Utilities.GetStatusOutLabel(),Utilities.GetStatusOkLabel()))","v":"Fehlt"}]
[null,54,null,null,null,null,null,null,null,null,null,null,{"$f":"IF(OR(LEN(TRIM(C58))<=0,LEN(TRIM(D58))<=0,LEN(TRIM(E58))<=0,LEN(TRIM(F58))<=0,LEN(TRIM(G58))<=0,LEN(TRIM(H58))<=0),Utilities.GetStatusMissingLabel(),IF(TRIM(N58) = \"x\", Utilities.GetStatusOutLabel(),Utilities.GetStatusOkLabel()))","v":"Fehlt"}]
[null,55,null,null,null,null,null,null,null,null,null,null,{"$f":"IF(OR(LEN(TRIM(C59))<=0,LEN(TRIM(D59))<=0,LEN(TRIM(E59))<=0,LEN(TRIM(F59))<=0,LEN(TRIM(G59))<=0,LEN(TRIM(H59))<=0),Utilities.GetStatusMissingLabel(),IF(TRIM(N59) = \"x\", Utilities.GetStatusOutLabel(),Utilities.GetStatusOkLabel()))","v":"Fehlt"}]
[null,56,null,null,null,null,null,null,null,null,null,null,{"$f":"IF(OR(LEN(TRIM(C60))<=0,LEN(TRIM(D60))<=0,LEN(TRIM(E60))<=0,LEN(TRIM(F60))<=0,LEN(TRIM(G60))<=0,LEN(TRIM(H60))<=0),Utilities.GetStatusMissingLabel(),IF(TRIM(N60) = \"x\", Utilities.GetStatusOutLabel(),Utilities.GetStatusOkLabel()))","v":"Fehlt"}]
[null,57,null,null,null,null,null,null,null,null,null,null,{"$f":"IF(OR(LEN(TRIM(C61))<=0,LEN(TRIM(D61))<=0,LEN(TRIM(E61))<=0,LEN(TRIM(F61))<=0,LEN(TRIM(G61))<=0,LEN(TRIM(H61))<=0),Utilities.GetStatusMissingLabel(),IF(TRIM(N61) = \"x\", Utilities.GetStatusOutLabel(),Utilities.GetStatusOkLabel()))","v":"Fehlt"}]
[null,58,null,null,null,null,null,null,null,null,null,null,{"$f":"IF(OR(LEN(TRIM(C62))<=0,LEN(TRIM(D62))<=0,LEN(TRIM(E62))<=0,LEN(TRIM(F62))<=0,LEN(TRIM(G62))<=0,LEN(TRIM(H62))<=0),Utilities.GetStatusMissingLabel(),IF(TRIM(N62) = \"x\", Utilities.GetStatusOutLabel(),Utilities.GetStatusOkLabel()))","v":"Fehlt"}]
[null,59,null,null,null,null,null,null,null,null,null,null,{"$f":"IF(OR(LEN(TRIM(C63))<=0,LEN(TRIM(D63))<=0,LEN(TRIM(E63))<=0,LEN(TRIM(F63))<=0,LEN(TRIM(G63))<=0,LEN(TRIM(H63))<=0),Utilities.GetStatusMissingLabel(),IF(TRIM(N63) = \"x\", Utilities.GetStatusOutLabel(),Utilities.GetStatusOkLabel()))","v":"Fehlt"}]
[null,60,null,null,null,null,null,null,null,null,null,null,{"$f":"IF(OR(LEN(TRIM(C64))<=0,LEN(TRIM(D64))<=0,LEN(TRIM(E64))<=0,LEN(TRIM(F64))<=0,LEN(TRIM(G64))<=0,LEN(TRIM(H64))<=0),Utilities.GetStatusMissingLabel(),IF(TRIM(N64) = \"x\", Utilities.GetStatusOutLabel(),Utilities.GetStatusOkLabel()))","v":"Fehlt"}]
[null,61,null,null,null,null,null,null,null,null,null,null,{"$f":"IF(OR(LEN(TRIM(C65))<=0,LEN(TRIM(D65))<=0,LEN(TRIM(E65))<=0,LEN(TRIM(F65))<=0,LEN(TRIM(G65))<=0,LEN(TRIM(H65))<=0),Utilities.GetStatusMissingLabel(),IF(TRIM(N65) = \"x\", Utilities.GetStatusOutLabel(),Utilities.GetStatusOkLabel()))","v":"Fehlt"}]
[null,62,null,null,null,null,null,null,null,null,null,null,{"$f":"IF(OR(LEN(TRIM(C66))<=0,LEN(TRIM(D66))<=0,LEN(TRIM(E66))<=0,LEN(TRIM(F66))<=0,LEN(TRIM(G66))<=0,LEN(TRIM(H66))<=0),Utilities.GetStatusMissingLabel(),IF(TRIM(N66) = \"x\", Utilities.GetStatusOutLabel(),Utilities.GetStatusOkLabel()))","v":"Fehlt"}]
[null,63,null,null,null,null,null,null,null,null,null,null,{"$f":"IF(OR(LEN(TRIM(C67))<=0,LEN(TRIM(D67))<=0,LEN(TRIM(E67))<=0,LEN(TRIM(F67))<=0,LEN(TRIM(G67))<=0,LEN(TRIM(H67))<=0),Utilities.GetStatusMissingLabel(),IF(TRIM(N67) = \"x\", Utilities.GetStatusOutLabel(),Utilities.GetStatusOkLabel()))","v":"Fehlt"}]
[null,64,null,null,null,null,null,null,null,null,null,null,{"$f":"IF(OR(LEN(TRIM(C68))<=0,LEN(TRIM(D68))<=0,LEN(TRIM(E68))<=0,LEN(TRIM(F68))<=0,LEN(TRIM(G68))<=0,LEN(TRIM(H68))<=0),Utilities.GetStatusMissingLabel(),IF(TRIM(N68) = \"x\", Utilities.GetStatusOutLabel(),Utilities.GetStatusOkLabel()))","v":"Fehlt"}]
[null,65,null,null,null,null,null,null,null,null,null,null,{"$f":"IF(OR(LEN(TRIM(C69))<=0,LEN(TRIM(D69))<=0,LEN(TRIM(E69))<=0,LEN(TRIM(F69))<=0,LEN(TRIM(G69))<=0,LEN(TRIM(H69))<=0),Utilities.GetStatusMissingLabel(),IF(TRIM(N69) = \"x\", Utilities.GetStatusOutLabel(),Utilities.GetStatusOkLabel()))","v":"Fehlt"}]
[null,66,null,null,null,null,null,null,null,null,null,null,{"$f":"IF(OR(LEN(TRIM(C70))<=0,LEN(TRIM(D70))<=0,LEN(TRIM(E70))<=0,LEN(TRIM(F70))<=0,LEN(TRIM(G70))<=0,LEN(TRIM(H70))<=0),Utilities.GetStatusMissingLabel(),IF(TRIM(N70) = \"x\", Utilities.GetStatusOutLabel(),Utilities.GetStatusOkLabel()))","v":"Fehlt"}]
[null,{"$f":" B70 +1","v":67},null,null,null,null,null,null,null,null,null,null,{"$f":"IF(OR(LEN(TRIM(C71))<=0,LEN(TRIM(D71))<=0,LEN(TRIM(E71))<=0,LEN(TRIM(F71))<=0,LEN(TRIM(G71))<=0,LEN(TRIM(H71))<=0),Utilities.GetStatusMissingLabel(),IF(TRIM(N71) = \"x\", Utilities.GetStatusOutLabel(),Utilities.GetStatusOkLabel()))","v":"Fehlt"}]
[null,68,null,null,null,null,null,null,null,null,null,null,{"$f":"IF(OR(LEN(TRIM(C72))<=0,LEN(TRIM(D72))<=0,LEN(TRIM(E72))<=0,LEN(TRIM(F72))<=0,LEN(TRIM(G72))<=0,LEN(TRIM(H72))<=0),Utilities.GetStatusMissingLabel(),IF(TRIM(N72) = \"x\", Utilities.GetStatusOutLabel(),Utilities.GetStatusOkLabel()))","v":"Fehlt"}]
[null,69,null,null,null,null,null,null,null,null,null,null,{"$f":"IF(OR(LEN(TRIM(C73))<=0,LEN(TRIM(D73))<=0,LEN(TRIM(E73))<=0,LEN(TRIM(F73))<=0,LEN(TRIM(G73))<=0,LEN(TRIM(H73))<=0),Utilities.GetStatusMissingLabel(),IF(TRIM(N73) = \"x\", Utilities.GetStatusOutLabel(),Utilities.GetStatusOkLabel()))","v":"Fehlt"}]
[null,70,null,null,null,null,null,null,null,null,null,null,{"$f":"IF(OR(LEN(TRIM(C74))<=0,LEN(TRIM(D74))<=0,LEN(TRIM(E74))<=0,LEN(TRIM(F74))<=0,LEN(TRIM(G74))<=0,LEN(TRIM(H74))<=0),Utilities.GetStatusMissingLabel(),IF(TRIM(N74) = \"x\", Utilities.GetStatusOutLabel(),Utilities.GetStatusOkLabel()))","v":"Fehlt"}]
[null,71,null,null,null,null,null,null,null,null,null,null,{"$f":"IF(OR(LEN(TRIM(C75))<=0,LEN(TRIM(D75))<=0,LEN(TRIM(E75))<=0,LEN(TRIM(F75))<=0,LEN(TRIM(G75))<=0,LEN(TRIM(H75))<=0),Utilities.GetStatusMissingLabel(),IF(TRIM(N75) = \"x\", Utilities.GetStatusOutLabel(),Utilities.GetStatusOkLabel()))","v":"Fehlt"}]
[null,72,null,null,null,null,null,null,null,null,null,null,{"$f":"IF(OR(LEN(TRIM(C76))<=0,LEN(TRIM(D76))<=0,LEN(TRIM(E76))<=0,LEN(TRIM(F76))<=0,LEN(TRIM(G76))<=0,LEN(TRIM(H76))<=0),Utilities.GetStatusMissingLabel(),IF(TRIM(N76) = \"x\", Utilities.GetStatusOutLabel(),Utilities.GetStatusOkLabel()))","v":"Fehlt"}]
[null,73,null,null,null,null,null,null,null,null,null,null,{"$f":"IF(OR(LEN(TRIM(C77))<=0,LEN(TRIM(D77))<=0,LEN(TRIM(E77))<=0,LEN(TRIM(F77))<=0,LEN(TRIM(G77))<=0,LEN(TRIM(H77))<=0),Utilities.GetStatusMissingLabel(),IF(TRIM(N77) = \"x\", Utilities.GetStatusOutLabel(),Utilities.GetStatusOkLabel()))","v":"Fehlt"}]
[null,74,null,null,null,null,null,null,null,null,null,null,{"$f":"IF(OR(LEN(TRIM(C78))<=0,LEN(TRIM(D78))<=0,LEN(TRIM(E78))<=0,LEN(TRIM(F78))<=0,LEN(TRIM(G78))<=0,LEN(TRIM(H78))<=0),Utilities.GetStatusMissingLabel(),IF(TRIM(N78) = \"x\", Utilities.GetStatusOutLabel(),Utilities.GetStatusOkLabel()))","v":"Fehlt"}]
[null,75,null,null,null,null,null,null,null,null,null,null,{"$f":"IF(OR(LEN(TRIM(C79))<=0,LEN(TRIM(D79))<=0,LEN(TRIM(E79))<=0,LEN(TRIM(F79))<=0,LEN(TRIM(G79))<=0,LEN(TRIM(H79))<=0),Utilities.GetStatusMissingLabel(),IF(TRIM(N79) = \"x\", Utilities.GetStatusOutLabel(),Utilities.GetStatusOkLabel()))","v":"Fehlt"}]
[null,76,null,null,null,null,null,null,null,null,null,null,{"$f":"IF(OR(LEN(TRIM(C80))<=0,LEN(TRIM(D80))<=0,LEN(TRIM(E80))<=0,LEN(TRIM(F80))<=0,LEN(TRIM(G80))<=0,LEN(TRIM(H80))<=0),Utilities.GetStatusMissingLabel(),IF(TRIM(N80) = \"x\", Utilities.GetStatusOutLabel(),Utilities.GetStatusOkLabel()))","v":"Fehlt"}]
[null,77,null,null,null,null,null,null,null,null,null,null,{"$f":"IF(OR(LEN(TRIM(C81))<=0,LEN(TRIM(D81))<=0,LEN(TRIM(E81))<=0,LEN(TRIM(F81))<=0,LEN(TRIM(G81))<=0,LEN(TRIM(H81))<=0),Utilities.GetStatusMissingLabel(),IF(TRIM(N81) = \"x\", Utilities.GetStatusOutLabel(),Utilities.GetStatusOkLabel()))","v":"Fehlt"}]
[null,78,null,null,null,null,null,null,null,null,null,null,{"$f":"IF(OR(LEN(TRIM(C82))<=0,LEN(TRIM(D82))<=0,LEN(TRIM(E82))<=0,LEN(TRIM(F82))<=0,LEN(TRIM(G82))<=0,LEN(TRIM(H82))<=0),Utilities.GetStatusMissingLabel(),IF(TRIM(N82) = \"x\", Utilities.GetStatusOutLabel(),Utilities.GetStatusOkLabel()))","v":"Fehlt"}]
[null,79,null,null,null,null,null,null,null,null,null,null,{"$f":"IF(OR(LEN(TRIM(C83))<=0,LEN(TRIM(D83))<=0,LEN(TRIM(E83))<=0,LEN(TRIM(F83))<=0,LEN(TRIM(G83))<=0,LEN(TRIM(H83))<=0),Utilities.GetStatusMissingLabel(),IF(TRIM(N83) = \"x\", Utilities.GetStatusOutLabel(),Utilities.GetStatusOkLabel()))","v":"Fehlt"}]
[null,80,null,null,null,null,null,null,null,null,null,null,{"$f":"IF(OR(LEN(TRIM(C84))<=0,LEN(TRIM(D84))<=0,LEN(TRIM(E84))<=0,LEN(TRIM(F84))<=0,LEN(TRIM(G84))<=0,LEN(TRIM(H84))<=0),Utilities.GetStatusMissingLabel(),IF(TRIM(N84) = \"x\", Utilities.GetStatusOutLabel(),Utilities.GetStatusOkLabel()))","v":"Fehlt"}]
[null,81,null,null,null,null,null,null,null,null,null,null,{"$f":"IF(OR(LEN(TRIM(C85))<=0,LEN(TRIM(D85))<=0,LEN(TRIM(E85))<=0,LEN(TRIM(F85))<=0,LEN(TRIM(G85))<=0,LEN(TRIM(H85))<=0),Utilities.GetStatusMissingLabel(),IF(TRIM(N85) = \"x\", Utilities.GetStatusOutLabel(),Utilities.GetStatusOkLabel()))","v":"Fehlt"}]
[null,82,null,null,null,null,null,null,null,null,null,null,{"$f":"IF(OR(LEN(TRIM(C86))<=0,LEN(TRIM(D86))<=0,LEN(TRIM(E86))<=0,LEN(TRIM(F86))<=0,LEN(TRIM(G86))<=0,LEN(TRIM(H86))<=0),Utilities.GetStatusMissingLabel(),IF(TRIM(N86) = \"x\", Utilities.GetStatusOutLabel(),Utilities.GetStatusOkLabel()))","v":"Fehlt"}]
[null,83,null,null,null,null,null,null,null,null,null,null,{"$f":"IF(OR(LEN(TRIM(C87))<=0,LEN(TRIM(D87))<=0,LEN(TRIM(E87))<=0,LEN(TRIM(F87))<=0,LEN(TRIM(G87))<=0,LEN(TRIM(H87))<=0),Utilities.GetStatusMissingLabel(),IF(TRIM(N87) = \"x\", Utilities.GetStatusOutLabel(),Utilities.GetStatusOkLabel()))","v":"Fehlt"}]
[null,84,null,null,null,null,null,null,null,null,null,null,{"$f":"IF(OR(LEN(TRIM(C88))<=0,LEN(TRIM(D88))<=0,LEN(TRIM(E88))<=0,LEN(TRIM(F88))<=0,LEN(TRIM(G88))<=0,LEN(TRIM(H88))<=0),Utilities.GetStatusMissingLabel(),IF(TRIM(N88) = \"x\", Utilities.GetStatusOutLabel(),Utilities.GetStatusOkLabel()))","v":"Fehlt"}]
[null,85,null,null,null,null,null,null,null,null,null,null,{"$f":"IF(OR(LEN(TRIM(C89))<=0,LEN(TRIM(D89))<=0,LEN(TRIM(E89))<=0,LEN(TRIM(F89))<=0,LEN(TRIM(G89))<=0,LEN(TRIM(H89))<=0),Utilities.GetStatusMissingLabel(),IF(TRIM(N89) = \"x\", Utilities.GetStatusOutLabel(),Utilities.GetStatusOkLabel()))","v":"Fehlt"}]
[null,86,null,null,null,null,null,null,null,null,null,null,{"$f":"IF(OR(LEN(TRIM(C90))<=0,LEN(TRIM(D90))<=0,LEN(TRIM(E90))<=0,LEN(TRIM(F90))<=0,LEN(TRIM(G90))<=0,LEN(TRIM(H90))<=0),Utilities.GetStatusMissingLabel(),IF(TRIM(N90) = \"x\", Utilities.GetStatusOutLabel(),Utilities.GetStatusOkLabel()))","v":"Fehlt"}]
[null,87,null,null,null,null,null,null,null,null,null,null,{"$f":"IF(OR(LEN(TRIM(C91))<=0,LEN(TRIM(D91))<=0,LEN(TRIM(E91))<=0,LEN(TRIM(F91))<=0,LEN(TRIM(G91))<=0,LEN(TRIM(H91))<=0),Utilities.GetStatusMissingLabel(),IF(TRIM(N91) = \"x\", Utilities.GetStatusOutLabel(),Utilities.GetStatusOkLabel()))","v":"Fehlt"}]
[null,88,null,null,null,null,null,null,null,null,null,null,{"$f":"IF(OR(LEN(TRIM(C92))<=0,LEN(TRIM(D92))<=0,LEN(TRIM(E92))<=0,LEN(TRIM(F92))<=0,LEN(TRIM(G92))<=0,LEN(TRIM(H92))<=0),Utilities.GetStatusMissingLabel(),IF(TRIM(N92) = \"x\", Utilities.GetStatusOutLabel(),Utilities.GetStatusOkLabel()))","v":"Fehlt"}]
[null,89,null,null,null,null,null,null,null,null,null,null,{"$f":"IF(OR(LEN(TRIM(C93))<=0,LEN(TRIM(D93))<=0,LEN(TRIM(E93))<=0,LEN(TRIM(F93))<=0,LEN(TRIM(G93))<=0,LEN(TRIM(H93))<=0),Utilities.GetStatusMissingLabel(),IF(TRIM(N93) = \"x\", Utilities.GetStatusOutLabel(),Utilities.GetStatusOkLabel()))","v":"Fehlt"}]
[null,90,null,null,null,null,null,null,null,null,null,null,{"$f":"IF(OR(LEN(TRIM(C94))<=0,LEN(TRIM(D94))<=0,LEN(TRIM(E94))<=0,LEN(TRIM(F94))<=0,LEN(TRIM(G94))<=0,LEN(TRIM(H94))<=0),Utilities.GetStatusMissingLabel(),IF(TRIM(N94) = \"x\", Utilities.GetStatusOutLabel(),Utilities.GetStatusOkLabel()))","v":"Fehlt"}]
[null,91,null,null,null,null,null,null,null,null,null,null,{"$f":"IF(OR(LEN(TRIM(C95))<=0,LEN(TRIM(D95))<=0,LEN(TRIM(E95))<=0,LEN(TRIM(F95))<=0,LEN(TRIM(G95))<=0,LEN(TRIM(H95))<=0),Utilities.GetStatusMissingLabel(),IF(TRIM(N95) = \"x\", Utilities.GetStatusOutLabel(),Utilities.GetStatusOkLabel()))","v":"Fehlt"}]
[null,92,null,null,null,null,null,null,null,null,null,null,{"$f":"IF(OR(LEN(TRIM(C96))<=0,LEN(TRIM(D96))<=0,LEN(TRIM(E96))<=0,LEN(TRIM(F96))<=0,LEN(TRIM(G96))<=0,LEN(TRIM(H96))<=0),Utilities.GetStatusMissingLabel(),IF(TRIM(N96) = \"x\", Utilities.GetStatusOutLabel(),Utilities.GetStatusOkLabel()))","v":"Fehlt"}]
[null,93,null,null,null,null,null,null,null,null,null,null,{"$f":"IF(OR(LEN(TRIM(C97))<=0,LEN(TRIM(D97))<=0,LEN(TRIM(E97))<=0,LEN(TRIM(F97))<=0,LEN(TRIM(G97))<=0,LEN(TRIM(H97))<=0),Utilities.GetStatusMissingLabel(),IF(TRIM(N97) = \"x\", Utilities.GetStatusOutLabel(),Utilities.GetStatusOkLabel()))","v":"Fehlt"}]
[null,94,null,null,null,null,null,null,null,null,null,null,{"$f":"IF(OR(LEN(TRIM(C98))<=0,LEN(TRIM(D98))<=0,LEN(TRIM(E98))<=0,LEN(TRIM(F98))<=0,LEN(TRIM(G98))<=0,LEN(TRIM(H98))<=0),Utilities.GetStatusMissingLabel(),IF(TRIM(N98) = \"x\", Utilities.GetStatusOutLabel(),Utilities.GetStatusOkLabel()))","v":"Fehlt"}]
[null,95,null,null,null,null,null,null,null,null,null,null,{"$f":"IF(OR(LEN(TRIM(C99))<=0,LEN(TRIM(D99))<=0,LEN(TRIM(E99))<=0,LEN(TRIM(F99))<=0,LEN(TRIM(G99))<=0,LEN(TRIM(H99))<=0),Utilities.GetStatusMissingLabel(),IF(TRIM(N99) = \"x\", Utilities.GetStatusOutLabel(),Utilities.GetStatusOkLabel()))","v":"Fehlt"}]
[null,96,null,null,null,null,null,null,null,null,null,null,{"$f":"IF(OR(LEN(TRIM(C100))<=0,LEN(TRIM(D100))<=0,LEN(TRIM(E100))<=0,LEN(TRIM(F100))<=0,LEN(TRIM(G100))<=0,LEN(TRIM(H100))<=0),Utilities.GetStatusMissingLabel(),IF(TRIM(N100) = \"x\", Utilities.GetStatusOutLabel(),Utilities.GetStatusOkLabel()))","v":"Fehlt"}]
[null,97,null,null,null,null,null,null,null,null,null,null,{"$f":"IF(OR(LEN(TRIM(C101))<=0,LEN(TRIM(D101))<=0,LEN(TRIM(E101))<=0,LEN(TRIM(F101))<=0,LEN(TRIM(G101))<=0,LEN(TRIM(H101))<=0),Utilities.GetStatusMissingLabel(),IF(TRIM(N101) = \"x\", Utilities.GetStatusOutLabel(),Utilities.GetStatusOkLabel()))","v":"Fehlt"}]
[null,98,null,null,null,null,null,null,null,null,null,null,{"$f":"IF(OR(LEN(TRIM(C102))<=0,LEN(TRIM(D102))<=0,LEN(TRIM(E102))<=0,LEN(TRIM(F102))<=0,LEN(TRIM(G102))<=0,LEN(TRIM(H102))<=0),Utilities.GetStatusMissingLabel(),IF(TRIM(N102) = \"x\", Utilities.GetStatusOutLabel(),Utilities.GetStatusOkLabel()))","v":"Fehlt"}]
[null,99,null,null,null,null,null,null,null,null,null,null,{"$f":"IF(OR(LEN(TRIM(C103))<=0,LEN(TRIM(D103))<=0,LEN(TRIM(E103))<=0,LEN(TRIM(F103))<=0,LEN(TRIM(G103))<=0,LEN(TRIM(H103))<=0),Utilities.GetStatusMissingLabel(),IF(TRIM(N103) = \"x\", Utilities.GetStatusOutLabel(),Utilities.GetStatusOkLabel()))","v":"Fehlt"}]
[null,100,null,null,null,null,null,null,null,null,null,null,{"$f":"IF(OR(LEN(TRIM(C104))<=0,LEN(TRIM(D104))<=0,LEN(TRIM(E104))<=0,LEN(TRIM(F104))<=0,LEN(TRIM(G104))<=0,LEN(TRIM(H104))<=0),Utilities.GetStatusMissingLabel(),IF(TRIM(N104) = \"x\", Utilities.GetStatusOutLabel(),Utilities.GetStatusOkLabel()))","v":"Fehlt"}]
[]
[]
[null,"Partner:"]

{"sheet":"Runde 1","index":3,"n_rows":13,"n_cols":17,"rows_kept":13,"cut":false,"hidden":false,"merged":[]}
[]
[null,"Runde",null,null,1]
[]
[null,null,null,"Suche"]
[null,"Feld","Aufgabe","Id","Name","vs","Id","Gegner","Einzel-Resultat",null,null,"Forfait-Sieg",null,null,"Posten-Sieg"]
[null,null,"Beendet",6,"Ab Wehr (0)","-",1,"Angriffs Clear (0)",21,":",10,null,"|",null,"x","-"]
[null,null,"Beendet",4,"Sprung Smash (0)","-",8,"Return Spieler (0)",9,":",15,null,"|",null,null,"-","x"]
[null,null,"Beendet",5,"Cross Lob (0)","-",2,"Vorhand Drive (0)",17,":",11,null,"|",null,"x","-"]
[null,null,"Beendet",3,"Stop Drop (0)","-",7,"An Spiel (0)",5,":",18,null,"|",null,null,"-","x"]
[]
[]
[]
[null,"Partner:"]

{"sheet":"Runde 2","index":4,"n_rows":13,"n_cols":16,"rows_kept":13,"cut":false,"hidden":false,"merged":[]}
[]
[null,"Runde",null,null,2]
[]
[null,null,null,"Suche"]
[null,"Feld","Aufgabe","Id","Name","vs","Id","Gegner","Einzel-Resultat",null,null,"Forfait-Sieg",null,null,"Posten-Sieg"]
[null,null,"Beendet",7,"An Spiel (1)","-",8,"Return Spieler (1)",11,":",10,null,"|",null,"x","-"]
[null,null,"Beendet",6,"Ab Wehr (1)","-",5,"Cross Lob (1)",15,":",10,null,"|",null,"x","-"]
[null,null,"Beendet",4,"Sprung Smash (0)","-",2,"Vorhand Drive (0)",13,":",10,null,"|",null,"x","-"]
[null,null,"Beendet",1,"Angriffs Clear (0)","-",3,"Stop Drop (0)",15,":",8,null,"|",null,"x","-"]
[]
[]
[]
[null,"Partner:"]

{"sheet":"Runde 3","index":5,"n_rows":12,"n_cols":16,"rows_kept":12,"cut":false,"hidden":false,"merged":[]}
[]
[null,"Runde",null,null,3]
[]
[null,null,null,"Suche"]
[null,"Feld","Aufgabe","Id","Name","vs","Id","Gegner","Einzel-Resultat",null,null,"Forfait-Sieg",null,null,"Posten-Sieg"]
[null,1,"Einzel",6,"Cross Lob (2)","-",4,"Sprung Smash (1)",null,":",null,null,"|",null,null,"-"]
[null,2,"Einzel",5,"Cross Lob (1)","-",1,"Angriffs Clear (1)",null,":",null,null,"|",null,null,"-"]
[null,null,"Posten",2,"Vorhand Drive (0)","-",3,"Stop Drop (0)",null,":",null,null,"|",null,null,"-"]
[]
[]
[]
[null,"Partner:"]

{"sheet":"Ranglisten","index":6,"n_rows":16,"n_cols":17,"rows_kept":16,"cut":false,"hidden":false,"merged":[[1,12,1,14]]}
[]
[null,"Schlussranglisten",null,null,null,null,null,null,null,null,"mailen an:",null,"info@shuttletime.ch"]
[]
[null,"Rangliste der Teilnehmer",null,null,null,null,null,null,null,null,"Rangliste der Klassen",null,"Gewertete Teilnehmer pro Klasse",null,null,null,3]
[]
[null,"Rang","Id","Name","Einzel","Posten","Total","BHZ","Punkte",null,"Rang","Name","Einzel","Posten","Total","BHZ","Punkte"]
[null,1,6,"Cross Lob",2,2,3,3,16,null,1,"1C",3,3,4.5,6,17]
[null,2,5,"Cross Lob",1,1,1.5,3,1,null,2,"1A",1,1,1.5,5,-13]
[null,3,1,"Angriffs Clear",1,1,1.5,3,-4,null,3,"1B",1,1,1.5,3,-23]
[null,4,4,"Sprung Smash",1,1,1.5,2,-3]
[null,5,2,"Vorhand Drive",0,0,0,2,-9]
[null,6,3,"Stop Drop",0,0,0,1,-20]
[]
[]
[]
[null,"Partner:"]

{"sheet":"Hilfe","index":7,"n_rows":58,"n_cols":3,"rows_kept":58,"cut":false,"hidden":false,"merged":[]}
[]
[null,"\"It's Shuttle Time!\" Excel Tool v1.20"]
[]
[null,"Turnierdaten erfassen"]
[null,null,"Vor dem Turnier sollten Sie alle benötigten (gelb hinterlegten) Turnierdaten auf dem Blatt Turnier erfassen. Dazu gehört auch der Name der Kategorie. Falls Sie zum Beispiel für jeden Jahrgang ein separates Turnier mit separaten Ranglisten durchführen möchten, kopieren Sie das It's Shuttle Time Excel Tool und geben dann für jeden Jahrgang einen separaten Kategorienamen an."]
[]
[null,"Zeitplanung"]
[null,null,"Mit Hilfe der Zeitplanung können Sie den Zeitbedarf für das Turnier einfach berechnen. Die Gesamtzeit wird nach folgender Formel berechnet:\nGesamtzeit = Anzahl Runden * (3 * Spielzeit + 2 * Aufgabenwechselzeit + Rundenwechselzeit)\nOhne die Aufgabe Zählen wird die Gesamtzeit folgendermassen berechnet:\nGesamtzeit = Anzahl Runden * (2 * Spielzeit + Aufgabenwechselzeit + Rundenwechselzeit)\nOhne Berücksichtigung von Zusatzposten (einfacher Schoch Modus) vereinfacht sich die Berechnung:\nGesamtzeit = Anzahl Runden * (Spielzeit + Rundenwechselzeit)"]
[]
[null,"Klassenverantwortliche erfassen"]
[null,null,"Für eine komplette Meldung an ShuttleTime muss jede Klasse mit der verantwortlichen Lehrperson auf dem Blatt Klassenverantwortliche erfasst werden."]
[]
[null,"Teilnehmer erfassen"]
[null,null,"Auf dem Blatt Teilnehmer können Sie die Teilnehmer erfassen. Die Muss-Felder sind mit * nach dem Spaltennamen und gelbem Hintergrund gekennzeichnet. Nur wenn alle Muss-Felder eingegeben sind, wechselt der Status auf Ok. Während des Turnieres wird ein Teilnehmer nur über das Attribut Id identifiziert - der Name und auch alle anderen Attribute können jederzeit geändert werden und erscheinen dann entsprechend in neuen Auslosungen und der Schlussrangliste.\nDurch Setzen eines x in der Spalte Out kann ein Teilnehmer für die folgenden Auslosungen gestrichen werden (zum Beispiel wegen einer Verletzung). Auch gestrichene Teilnehmer werden aber für die Schlussranglisten gewertet.\nFür eine Auslosung werden nur  Teilnehmer mit Status Ok berücksichtigt."]
[]
[null,"Auslosung  erstellen"]
[]
[null,null,"Auslosung der Runde"]
[null,null,"Mit der Schaltfläche Diese Runde auslosen können Sie die Runde auf dem aktuellen Blatt Runde <x> neu auslosen, sofern alle Einzelresultate der vorangegangenen Runde erfasst sind und noch kein Resultat für die aktuelle Runde erfasst worden ist. Für die Auslosung werden nur die Teilnehmer mit dem Status Ok berücksichtigt (alle Muss-Felder ausgefüllt und nicht aus dem Turnier gestrichen).\nDie Auslosung erfolgt nach dem Schochsystem, wonach möglichst Spieler mit der gleichen Anzahl Einzelsiege gegeneinander gelost werden, um ausgeglichene Partien zu erhalten. Dabei werden möglichst noch zusätzlich folgende Punkte berücksichtigt:\n     - in der ersten Runde sollen keine Teilnehmer der gleichen Klasse gegeneinander gelost werden\n     - ein Spieler soll möglichst selten gegen den gleichen Gegner spielen müssen"]
[]
[null,null,"Darstellung der Runde"]
[null,null,"Nach erfolgter Auslosung werden alle ausgelosten Spiele der Runde untereinander dargestellt, wobei der Name der Teilnehmer gemäss dem Format \n       Vorname Name (Anzahl Einzelsiege vor der aktuellen Runde)\n angezeigt wird. Im Falle einer ungeraden Anzahl Teilnehmer gibt es ein Freilos (Bye), welches für die Rangliste wie ein Forfait-Sieg gewertet wird, um den Teilnehmer mit dem Freilos nicht zu benachteiligen.\nDie zugeordnete Aufgabe Einzel spielen, Zusatzposten oder Zählen gemäss «It's Shuttle Time!» - Konzept gilt jeweils für beide Teilnehmer eines ausgelosten Spieles. Die Aufgabe wird vom Tool neu zugeordnet, sobald die Einzelresultate für alle Spiele (Einzel) und das Resultat des Zusatzpostens (Posten) für alle Spiele eingetragen worden sind. \nAllen Spielen mit Aufgabe Einzel wird eine eindeutige Feldnummer zugewiesen."]
[]
[null,"Resultate erfassen"]
[]
[null,null,"Einzelresultat"]
[null,null,"Die Punkte eines Einzelresultates tragen Sie in den Spalten unter Einzel-Resultat ein. Es muss ein Sieger eingetragen werden: Bei Punktegleichstand wird ein Spiel nur  im Falle eines Forfaits gewertet.\nGibt ein Spieler ein Spiel auf oder tritt erst gar nicht an, so tragen Sie das mit einem x in der Spalte Forfait-Sieg für den Gegner ein. Geben Sie den Punktestand zum Zeitpunkt des Spielabbruchs ein - dieser wird  für die Punktedifferenz in der Rangliste gewertet."]
[]
[null,null,"Zusatzposten"]
[null,null,"Tragen Sie den Sieger des Zusatzpostens mit einem x in der entsprechenden Spalte unter Posten-Sieg ein. "]
[]
[null,"Runde hinzufügen / löschen"]
[null,null,"Mit der  Schaltfläche Runde hinzufügen auf irgendeinem Runde x Blatt können Sie eine neue Runde hinzufügen.\nDie aktuelle Runde (ausser der Runde 1) können Sie mittels Diese Runde löschen entfernen, sofern noch keine Resultate erfasst sind."]
[]
[null,"Ranglisten erstellen"]
[null,null,"Sowohl die Einzelrangliste aller Teilnehmer mit Status Ok oder Out, als auch die Klassenrangliste werden auf dem Blatt Ranglisten laufend aktualisiert. Die maximale Anzahl der gewerteten Teilnehmer pro Klasse kann für die Klassenrangliste konfiguriert werden"]
[null,null,"Ranking Berechnung"]
[null,null,"Die Einzelrangliste wird folgendermassen  berechnet:\n1. Anzahl Siegpunkte (Anzahl gewonnene Einzel + Anzahl gewonnene Zusatzposten / 2)\n2. Buchholzzahl (Anzahl gewonnene Einzel aller Gegner eines Teilnehmers unabhängig vom Resultat des Einzels)\n3. Punktedifferenz (gemäss der Resultate aller Einzelspiele eines Teilnehmers)\nFür die Klassenranglisten werden die ersten <n> Teilnehmerresultate zusammengezählt, wobei <n> die konfigurierte Anzahl der zu wertenden Teilnehmer repräsentiert."]
[]
[null,"Resultate  exportieren"]
[null,null,"Nach dem Turnier können Sie die Turnierdaten, Teilnehmer und Resultate auf dem Blatt Ranglisten mit der Schaltfläche Turnierdaten exportieren in eine Datei schreiben und speichern. Diese Datei können Sie anschliessend an den Shuttle Time-Verantwortlichen (info@shuttletime.ch) schicken."]
[]
[null,"Tipps & Tricks"]
[]
[null,null,"Beliebige Änderungen"]
[null,null,"Sie können beliebige Änderungen vornehmen, wenn Sie den Blattschutz aufheben (kein Passwort nötig).  So können zum Beipiel auch Spielpaarungen geändert werden ."]
[]
[null,null,"Sicherheitskopien (Backup)"]
[null,null,"Dazu kopieren Sie einfach das Excel-File auf einen Datenträger. Alle Turnierdaten sind im Excel -File gespeichert."]
[]
[null,null,"Unterstützte Umgebungen"]
[null,null,"Dieses Excel-Tool ist mit VBA implementiert und läuft auf Windows Excel 2007, 2011 und 2013 sowie Mac OS Excel 2011."]
[]
[null,null,"Umschalten Tuniermodus (Tournament-Mode)"]
[null,null,"Auf dem Blatt Codes können Sie den Turniermodus ändern:\nShuttle Time (Spielen / Zählen / Posten): Das Original!\nShuttle Time light (Spielen / Posten): Für ältere SchülerInnen oder wenn genügend Platz zum Spielen vorhanden ist.\nSchoch (nur Spielen)."]
[]
[]
[null,"Partner:"]

{"sheet":"Assistance","index":8,"n_rows":58,"n_cols":3,"rows_kept":58,"cut":false,"hidden":true,"merged":[]}
[]
[null,"\"It's Shuttle Time!\" Excel Tool v1.12"]
[]
[null,"Saisir les informations sur le tournoi"]
[null,null,"Avant le début du tournoi, vous devriez saisir toutes les informations requises dans les champs marqués en jaune sous l’onglet Tournoi. N’oubliez pas de mentionner le nom de la catégorie. Si vous souhaitez organiser un tournoi distinct pour chaque catégorie d’âge, veuillez faire une copie du fichier Excel It’s Shuttle Time et donner pour chaque catégorie d’âge un nom de catégorie différent."]
[]
[null,"Planification du temps"]
[null,null,"A l’aide de l’outil pour la planification du temps, il est très facile d’estimer la durée du tournoi. Le temps nécessaire requis est calculé au moyen de la formule suivante:\nDurée totale = Nombre de tours * (3 * durée du match + 2 * temps requis entre les changements de tâche + temps requis entre les changements de tour)\nLe calcul est simplifié si la tâche propre au poste (système Schoch) ou au comptage des points n’est pas prise en considération:\nDurée totale = Nombre de tours * (durée du match + temps requis entre les changements de tour)\nSans ″comptage des points″:\nDurée totale = Nombre de tours * (2 * durée du match + temps requis entre les changements de tâche + temps requis entre les changements de tour)"]
[]
[null,"Saisir le responsable de classe"]
[null,null,"Pour que l’inscription adressée à la direction du projet de Shuttle Time soit complète, chaque classe doit – d’entente avec l’enseignant responsable – désigner un responsable parmi les participants et le saisir sous l’onglet Responsable de la classe."]
[]
[null,"Saisir les participants"]
[null,null,"Les participants doivent être saisis sous l’onglet Participants. Les champs obligatoires à remplir sont marqués par un * à la fin de l’attribut de la colonne concernée et marqués en jaune. Le statut passe à Ok seulement si tous les champs obligatoires à remplir ont bien été saisis. Durant le tournoi, chaque participant est identifié par l’attribut Id. Le nom et tous les autres attributs peuvent ainsi être modifiés à tout moment.\nUn participant peut être retiré des tours suivants en indiquant un x dans la colonne Out (p.ex. pour cause de blessure). Chaque participant fait partie du classement final, même si il doit être retiré de la liste avant la fin du tournoi.\nSeuls les participants avec le statut Ok entrent en ligne de compte pour le tirage au sort."]
[]
[null,"Effectuer un tirage au sort"]
[]
[null,null,"Tirage au sort d’un tour"]
[null,null,"Sous l’onglet Tour <x> , vous pouvez effectuer un nouveau tirage au sort en cliquant sur le bouton Tirage au sort de ce tour pour autant que tous les résultats des simples des tours précédents aient bien été saisis et qu’aucun résultat n’ait encore été saisi pour le tour actuel. Seuls les participants avec le statut Ok entrent en ligne de compte pour le tirage au sort (tous les champs obligatoires doivent être remplis et les participants ne doivent pas être retirés du tournoi).\nLe tirage au sort s’effectue sur le principe du système Schoch. Dans la mesure du possible, les joueurs avec le même nombre de victoires en simple doivent jouer les uns contre les autres. Par ailleurs, les conditions suivantes doivent si possible également être remplies:\n- les participants de la même classe ne peuvent s’affronter au premier tour\n- un joueur ne devrait pas jouer plusieurs fois contre le même adversaire"]
[]
[null,null,"Déroulement d’un tour"]
[null,null,"Après le tirage au sort, tous les matchs du tour figurent avec le nom des participants dans un tableau selon le format suivant: \n       Prénom Nom (nombre de victoires en simple avant le tour actuel)\nSi le nombre de participants est impair, un des joueurs obtient un \"bye\", synonyme de victoire par forfait au classement final, pour ne pas le désavantager par rapport aux autres participants.\nUne paire tirée au sort effectuera toutes les tâches du tour ensemble (le match en simple, le poste, et le comptage des points). Une nouvelle tâche sera attribuée par le logiciel une fois que tous les résultats du simple de toutes les paires ayant pour tâche le simple ainsi que ceux des différents postes pour les paires ayant pour tâche les postes aient bien été saisis."]
[]
[null,"Saisir les résultats"]
[]
[null,null,"Résultat du simple"]
[null,null,"Le score du match de simple doit être reporté dans la colonne Résultat du simple. Un vainqueur doit nécessairement figurer dans le tableau, un match nul n’existe pas. En cas d’égalité de points, le match comptera seulement en cas de forfait d’un des joueurs. Si un joueur abandonne ou ne se présente pas, il faut indiquer un x dans la colonne Victoire par forfait. Saisissez le score au moment de l’interruption du match – celui-ci sera pris en considération pour la différence de points dans le classement."]
[]
[null,null,"Postes"]
[null,null,"Indiquez le vainqueur du poste avec un x dans la colonne Vainqueur du poste."]
[]
[null,"Ajouter / supprimer un tour"]
[null,null,"Pour ajouter un nouveau tour, cliquez sur le bouton Ajouter un tour sous l’onglet Tour x.\nVous avez la possibilité de supprimer le tour actuel (excepté le premier) en cliquant sur le bouton Supprimer ce tour pour autant qu’aucun résultat n’ait été saisi au préalable."]
[]
[null,"Etablir les classements"]
[null,null,"Le classement du simple de tous les participants avec le statut Ok ou Out ainsi que celui des classes doivent être constamment actualisés sous l’onglet Classements. Le nombre maximum de participants par classe à être pris en considération pour le classement des classes peut être déterminé au début du tournoi."]
[null,null,"Calcul pour effectuer le classement"]
[null,null,"Le classement du simple s’effectue de la façon suivante:\n1. Nombre de points gagnés (nombre de simples gagnés + nombre de postes gagnés / 2)\n2. Nombre de Buchholz (nombre de simples gagnés par tous les adversaires du participant indépendamment du résultat du match) \n3. Différence de points (en fonction des résultats de tous les matchs de simple du participant) \nPour le classement des classes, seuls les premiers <n> résultats des participants comptent, <n> correspondant  au nombre de participants déterminé au début du tournoi et à considérer pour le classement final."]
[]
[null,"Exporter les résultats"]
[null,null,"Sous l’onglet Classements,  vous avez la possibilité de sauvegarder dans un fichier à la fin du tournoi toutes les informations sur le tournoi, les participants et les résultats en cliquant sur le bouton Exporter les informations du tournoi. Ensuite, ce fichier peut être envoyé par e-mail aux responsables de Shuttle Time."]
[]
[null,"Tipps & Tricks"]
[]
[null,null,"Adaptation possible"]
[null,null,"Vous avez la possibilité d’effectuer des modifications si vous enlevez la protection de la feuille de calcul (aucun mot de passe requis).  Ainsi, vous pouvez par exemple changer les paires."]
[]
[null,null,"Copies de sécurité (backup)"]
[null,null,"Il suffit de copier le fichier Excel sur un support de données. Toutes les informations sur le tournoi sont sauvegardées dans le fichier Excel."]
[]
[null,null,"Environnements supportés"]
[null,null,"Ce logiciel Excel fonctionne uniquement avec Windows Excel 2007, 2011 und 2013 ou avec Mac OS Excel 2011."]
[]
[null,null,"Configuration"]
[null,null,"Le mode de tournoi (It's ShuttleTime avec postes / système Schoch) et la langue peuvent être modifiés sous l’onglet Codes. Il est également possible d’indiquer si le tournoi se déroule avec la tâche comptage des points."]
[]
[]
[null,"Partner:"]

{"sheet":"Aiuto","index":9,"n_rows":58,"n_cols":3,"rows_kept":58,"cut":false,"hidden":true,"merged":[]}
[]
[null,"\"It's Shuttle Time!\" Excel Tool v1.12"]
[]
[null,"Inserire i dati relativi al torneo"]
[null,null,"Prima dell’inizio del torneo dovreste inserire nel foglio Torneo tutti i dati richiesti relativi a quest‘ultimo (nei campi in giallo), fra cui anche il nome della categoria. Se, per esempio, desiderate organizzare un torneo separato con delle classifiche separate per ogni categoria di età, copiate il documento Excel It’Shuttle Time e attribuite ad ogni categoria di età un nome di categoria diverso."]
[]
[null,"Pianificazione del tempo"]
[null,null,"Con l’aiuto di questo strumento per la pianificazione del tempo potete valutare con facilità la durata del torneo. Il tempo necessario va calcolato con la seguente formula:\nDurata totale = numero di gironi * (3 * durata della partita + 2 * tempo richiesto per i cambiamenti di postazione + tempo richiesto per i cambi di gironi)\nIl calcolo si semplifica se il compito relativo alla postazione (sistema Schoch):\nDurata totale = numero di gironi * (durata della partita + tempo richiesto fra i cambi di girone)\nAl conteggio dei punti non viene preso in considerazione:\nDurata totale = numero di gironi * (2 * durata della partita + tempo richiesto per i cambiamenti di postazione + tempo richiesto per i cambi di gironi)"]
[]
[null,"Inserire il responsabile della classe"]
[null,null,"Ogni classe deve, d’intesa con l’insegnante responsabile, designare un responsabile fra i partecipanti e inserirlo sotto la scheda Responsabili delle classi. Solo in questo modo l’iscrizione destinata alla direzione del progetto di Shuttle Time sarà completa."]
[]
[null,"Inserire i partecipanti"]
[null,null,"Potete inserire i partecipanti nel foglio Partecipanti. I campi obbligatori sono contrassegnati con un * alla fine dell’attributo della rispettiva colonna e segnati in giallo. Solo dopo aver riempito tutti i campi obbligatori lo stato cambia in OK. Durante il torneo i partecipanti saranno identificati solo con l’attributo Id, ciò che permette di modificare tutti gli altri attributi in qualsiasi momento.\nUn partecipante può essere ritirato dai gironi seguenti indicando una x nella colonna fuori  (ad esempio a causa di un infortunio). Ogni partecipanti fa parte della classifica finale, anche se dovesse essere tolto dalla lista prima della fine del torne.\nPer il sorteggio sono presi in considerazione solo i partecipanti il cui stato è OK."]
[]
[null,"Eseguire un sorteggio"]
[]
[null,null,"Sorteggio di un girone"]
[null,null,"Con il bottone Sorteggiare questo girone potete sorteggiare nuovamente il girone sull’attuale foglio  girone  <x> ma solo se sono stati inseriti tutti i risultati dei singoli dei gironi precedenti e che non sia stato inserito alcun risultato per l’attuale girone. Per il sorteggio sono presi in considerazione soltanto i partecipanti il cui stato è OK (tutti i campi obbligatori devono essere riempiti e i partecipanti non devono essere ritirati dal torneo). \nIl sorteggio viene eseguito in base al sistema Schoch, secondo cui nella misura del possibile vengono sorteggiati fra di loro i giocatori con lo stesso numero di vittorie nei singoli. A seconda delle possibilità, bisogna soddisfare anche i seguenti criteri:\n     - nel primo girone non vanno estratti a sorte i partecipanti di una stessa classe \n     - un giocatore non dovrebbe giocare più volte contro lo stesso avversario"]
[]
[null,null,"Svolgimento di un girone"]
[null,null,"Dopo il sorteggio, tutte le partite del girone figurano in una tabella con il nome dei partecipanti indicato nel modo seguente \n              mome cognome (numero di vittorie nei singoli prima di questo girone)\nSe il numero di partecipanti è dispari uno dei giocatori ottiene un bye, che per la classifica conta come una vittoria per forfait. Questa soluzione permette di non svantaggiare i partecipanti con il bye.\nGli accoppiamenti sorteggiati disputano insieme tutti i compiti che prevede un girone: partita di singolo, postazioni supplementari e conteggio punti. Un nuovo compito è riassegnato dallo strumento non appena saranno inseriti tutti i risultati del singolo di tutti gli accoppiamenti con il compito singolo e quelli delle varie postazioni supplementare per tutti gli accoppiamenti con il compito postazioni. \nA tutti gli accoppiamenti con i compiti singolo e conteggio punti è attribuito un numero di campo specifico."]
[]
[null,"Inserire i risultati"]
[]
[null,null,"Risultato del singolo"]
[null,null,"Il risultato della partita di singolo va inserito nella colonna risultato del singolo. Nella tabella deve obbligatoriamente figurare un vincitore, una partita terminata a pari merito non esiste. In questo caso, la partita viene conteggiata solo se uno dei due dà forfait. Se un giocatore abbandona una partita oppure non si presenta,  occorre inserire una x nella colonna  vittoria per forfait.\nInserite il punteggio ottenuto nel momento in cui la partita è stata interrotta. Questo punteggio sarà contabilizzato per la differenza di punti nella classifica."]
[]
[null,null,"Postazioni supplementari"]
[null,null,"Inserite il vincitore della postazione supplementare con una x nella colonna vincitore della postazione. "]
[]
[null,"Aggiungere/cancellare un girone"]
[null,null,"Per aggiungere nuovo girone cliccate sul bottone Inserire un girone nel foglio girone x.\nIl girone attuale (eccetto il girone 1) può essere cancellato cliccando sul bottone Cancellare questo girone ma solo se non sono ancora stati inseriti dei risultati."]
[]
[null,"Stilare le classifiche"]
[null,null,"Sia la classifica dei singoli di tutti i partecipanti con lo stato OK o fuori che quella delle classi vanno costantemente aggiornate nel foglio Classifiche. Il numero massimo di partecipanti  conteggiati per i classe che viene preso in considerazione per la classifica delle classi può essere deciso all’inizio del torneo."]
[null,null,"Calcolo per eseguire la classifica"]
[null,null,"La classifica dei singoli è calcolata come segue:\n1. Numero di punti vinti (numero di singoli vinti + numero di postazioni supplementari vinte/2)\n2. Sistema Buchholz (numero di singoli vinti da tutti gli avversari di un partecipante, indipendentemente dal risultato della partita)\n3. Differenza punti (in base ai risultati di tutte le partite di singolo giocate da un partecipante)\nPer eseguire il calcolo della classifica delle classifiche delle classi contano solo i primi <n> risultati dei partecipanti. <n> corrisponde al numero di partecipanti deciso all’inizio del torneo e da prendere in considerazione per la classifica finale."]
[]
[null,"Esportare i risultati "]
[null,null,"Nel foglio Classifiche, al termine del torneo, potete salvare in un file le informazioni relative al torneo, ai partecipanti e ai risultati cliccando sul bottone Esportare i dati del torneo. Dopodiché potete spedire questo file per e-mail ai responsabili di Shuttle Time."]
[]
[null,"Consigli e astuzie"]
[]
[null,null,"Possibili adattamenti"]
[null,null,"Avete la possibilità di apportare delle modifiche rimuovendo la protezione del foglio (password non necessaria). Ad esempio potete anche cambiare gli accoppiamenti delle partite."]
[]
[null,null,"Copia di sicurezza (backup)"]
[null,null,"Per realizzarne una basta copiare il documento Excel in una memoria di massa. Tutti i dati relativi al torneo sono salvati nel documento Excel"]
[]
[null,null,"Ambienti supportati"]
[null,null,"Questo strumento Excel è implementato con VBA e funziona unicamente con Windows Excel 2007, 2001 e 2013 o con Mac OS Excel 2011."]
[]
[null,null,"Configurazione"]
[null,null,"Il modo in cui si svolge il torneo (It’s Shuttle Time con postazioni / sistema Schoch) e la lingua possono essere modificati sotto la scheda Codes. È anche possibile indicare se il torneo si svolge con il compito Conteggio dei punti."]
[]
[]
[null,"Partner:"]

{"sheet":"Codes","index":10,"n_rows":12,"n_cols":8,"rows_kept":12,"cut":false,"hidden":false,"merged":[]}
[]
[null,"Configuration",null,null,"Codes"]
[]
[null,"Tournament-Mode","ShuttleTime light",null,"Sex","Checkbox","Mode","Language"]
[null,"Language","de",null,null,null,"ShuttleTime","de"]
[null,null,null,null,"F","x","ShuttleTime light","fr"]
[null,null,null,null,"M"," ","Schoch","it"]
[]
[]
[]
[]
[null,"Partner:"]